[Event "Fagernes Chess GM-Swiss 2024"]
[Site "Fagernes"]
[Date "2024.03.24"]
[Round "1.11"]
[White "Kreken, Eivind Grunt"]
[Black "Blomqvist, Erik"]
[Result "1/2-1/2"]
[ECO "D77"]
[WhiteElo "2215"]
[BlackElo "2511"]
[Annotator "TA"]
[PlyCount "54"]
[EventDate "2024.03.25"]
[EventType "swiss"]
[EventCountry "NOR"]
[SourceTitle "playchess.com"]
[Source "ChessBase"]
[SourceQuality "1"]
[TimeControl "40/6000+30:2400+30"]

{[%evp 19,54,22,18,-7,0,-9,-18,-10,0,0,0,0,0,0,0,0,0,0,0,0,0,0,0,0,0,0,0,0,0,0,0,0,0,0,0,0,0]} 1. Nf3 {[%emt 0:00:03]} d5 {[%emt 0:02:59]} 2. g3 {[%emt 0:00:50]} g6 {[%emt 0:02:29]} 3. Bg2 {[%emt 0:00:50]} Bg7 {[%emt 0:00:09]} 4. d4 {[%emt 0:00:24]} Nf6 {[%emt 0:00:30]} 5. O-O {[%emt 0:00:55]} O-O {[%emt 0:00:07]} 6. c4 {[%emt 0:01:29]} dxc4 {[%emt 0:01:37]} 7. Na3 {[%emt 0:02:19]} c3 {[%emt 0:04:32]} 8. bxc3 {[%emt 0:01:09]} c5 {[%emt 0:00:07]} 9. Ne5 {[%emt 0:08:58]} Nc6 {[%emt 0:03:29]} 10. Nxc6 {[%emt 0:01:57]} bxc6 {[%emt 0:00:09] The position is equal.} 11. Bxc6 {[%emt 0:09:41] [#]} Bh3 $1 {[%emt 0:08:56]} 12. Bg2 {[%emt 0:19:31]} Bxg2 {[%emt 0:14:23]} 13. Kxg2 {[%emt 0:00:10]} Nd5 {[%emt 0:00:31]} 14. Bb2 {[%emt 0:04:22]} Rb8 {[%emt 0:05:32]} 15. Qc2 {[%emt 0:13:12]} Qd7 {[%emt 0:21:27]} 16. e4 {[%emt 0:04:23]} Nf4+ {[%emt 0:25:03]} 17. gxf4 {[%emt 0:11:46]} Qg4+ {[%emt 0:00:12]} 18. Kh1 {[%emt 0:00:05] [#] Hoping for f3.} Qf3+ {[%emt 0:00:12]} 19. Kg1 {[%emt 0:00:07]} cxd4 {[%emt 0:01:11]} 20. cxd4 {[%emt 0:05:18]} Rfc8 {[%emt 0:00:33]} 21. Qd2 {[%emt 0:00:29]} Qg4+ {[%emt 0:10:03]} 22. Kh1 {[%emt 0:00:01] aiming for f3.} Qf3+ {[%emt 0:00:55]} 23. Kg1 {[%emt 0:00:01] Rfc1 is the strong threat.} Rxb2 {[%emt 0:02:29]} 24. Qxb2 {[%emt 0:00:07] Threatens to win with Rfc1.} Bxd4 {[%emt 0:00:41]} 25. Qxd4 {[%emt 0:00:35]} Qg4+ {[%emt 0:00:11]} 26. Kh1 {[%emt 0:00:07]} Qf3+ {[%emt 0:00:15]} 27. Kg1 {[%emt 0:00:05]} Qg4+ {[%emt 0:00:07] A rather calm draw.   Weighted Error Value: White=0.02 (flawless) /Black=0.01 (flawless) .  OK:         	White=4     	Black=13     Best:        	---       	Black=2} 1/2-1/2

[Event "Fagernes Chess GM-Swiss 2024"]
[Site "Fagernes"]
[Date "2024.03.24"]
[Round "1.12"]
[White "Prraneeth Vuppala"]
[Black "Skotheim, Andreas"]
[Result "1/2-1/2"]
[ECO "E15"]
[WhiteElo "2506"]
[BlackElo "2214"]
[Annotator "TA"]
[PlyCount "110"]
[EventDate "2024.03.25"]
[EventType "swiss"]
[EventCountry "NOR"]
[SourceTitle "playchess.com"]
[Source "ChessBase"]
[SourceQuality "1"]
[TimeControl "40/6000+30:2400+30"]

{[%evp 15,110,8,16,-8,9,4,26,22,29,27,15,22,40,25,24,14,9,4,13,0,8,10,9,7,16,-116,0,-20,0,-19,0,-10,0,-16,8,-6,17,6,6,11,14,11,180,199,289,229,260,258,341,324,392,121,129,140,184,191,176,192,191,182,195,172,206,35,35,35,35,35,35,0,0,0,0,0,0,0,0,0,0,0,0,0,0,0,0,0,0,0,0,0,0,0,0,0,0,0,0]} 1. d4 {[%emt 0:00:04]} Nf6 {[%emt 0:00:15]} 2. c4 {[%emt 0:00:05]} e6 {[%emt 0:00:19]} 3. Nf3 {[%emt 0:00:05]} b6 {[%emt 0:00:22]} 4. g3 {[%emt 0:01:04]} Ba6 {[%emt 0:00:18]} 5. Nbd2 {[%emt 0:01:04]} Bb7 {[%emt 0:01:09]} 6. Bg2 {[%emt 0:00:36]} Be7 {[%emt 0:00:37]} 7. O-O {[%emt 0:01:05]} O-O {[%emt 0:00:42]} 8. Qc2 {[%emt 0:03:01]} d5 {[%emt 0:02:09]} 9. b3 {[%emt 0:02:34]} c5 {[%emt 0:09:33]} 10. cxd5 {[%emt 0:02:25]} exd5 {[%emt 0:00:32]} (10... Nxd5 {scheint wilder zu sein.} 11. dxc5 Na6 12. c6 Nab4) 11. dxc5 {[%emt 0:06:03] Weiß hat minimalen Vorteil.} bxc5 {[%emt 0:00:32]} 12. Bb2 {[%emt 0:01:43]} Nbd7 {[%emt 0:03:46][%cal Bb8d7,Bd7f8,Bf8e6][%mdl 32]} 13. Rad1 {[%emt 0:01:16]} Qb6 {[%emt 0:02:50]} 14. Rfe1 {[%emt 0:02:14][%cal Oe2e4]} Rad8 {[%emt 0:15:18]} 15. Ng5 {[%emt 0:15:35]} (15. Bh3 $5) 15... h6 {[%emt 0:05:41]} 16. Nh3 {[%emt 0:04:06][%cal Bg5h3,Bh3f4,Bf4d3,Bd3e5,Be5f3,Bf3h4,Bh4f5][%mdl 32]} Rfe8 {[%emt 0:07:32]} 17. e3 {[%emt 0:03:01]} Nf8 {[%emt 0:14:50]} 18. Nf4 {[%emt 0:10:43]} Ne6 {[%emt 0:02:46]} 19. Nd3 {[%emt 0:07:01]} Rc8 {[%emt 0:06:08][%cal Oc5c4]} 20. h3 {[%emt 0:06:58]} (20. Ne5 $11 {hält das Gleichgewicht.}) 20... a5 {[%emt 0:02:16]} ({Besser ist} 20... c4 $1 $17 {[%cal Rc4d3]} 21. bxc4 dxc4 22. Bxb7 Qxb7) 21. Kh2 {[%emt 0:04:47]} Ba8 {[%emt 0:02:08]} 22. Ne5 {[%emt 0:02:16]} Qb8 {[%emt 0:04:57]} 23. f4 {[%emt 0:08:02]} Bd6 {[%emt 0:09:41]} 24. Nef3 {[%emt 0:03:28]} Be7 {[%emt 0:03:29]} 25. Nh4 {[%emt 0:04:47]} d4 {[%emt 0:05:59]} 26. Bxa8 {[%emt 0:10:21]} Qxa8 {[%emt 0:00:06]} 27. Nc4 {[%emt 0:00:41]} Nd5 {[%emt 0:03:59] Verhindert Nb6. Droht ...Bxh4 und aus.} 28. Nf5 {[%emt 0:00:14][%cal Re3d4]} Qb8 $2 {[%emt 0:03:42]} (28... Bf8 $11 {und Schwarz muss sich keine Sorgen machen.}) 29. exd4 $18 {[%emt 0:03:04]} cxd4 {[%emt 0:00:58] [#]} (29... Nxd4 $142 30. Qg2 (30. Nxa5 $2 Nxc2 31. Re5 Bf6 $19) (30. Bxd4 cxd4 31. Rxd4 Nb4 $16) (30. Nxe7+ Rxe7 31. Bxd4 Rxe1 $11) 30... Nxf5 31. Qxd5 (31. Rxd5 g6 $14) 31... Nd4) 30. Nxh6+ $1 {[%emt 0:04:06][%mdl 512]} gxh6 {[%emt 0:01:31] [#]} 31. Rxe6 {[%emt 0:00:05][%mdl 512]} Ne3 {[%emt 0:01:11]} (31... Bf6 32. Rxe8+) 32. Rxe3 {[%emt 0:03:21]} dxe3 {[%emt 0:00:04] [#]} 33. Qe2 $2 {[%emt 0:00:31]} (33. Qc3 $1 $18 {[%csl Gb2][%cal Rc3h8] und der Rest ist Schweigen.} f6 34. Qd3 (34. Qxa5 Red8 $11) (34. Qxe3 Bf8 $14)) 33... Rc6 {[%emt 0:01:03] [#]} 34. Ne5 $1 {[%emt 0:00:24] Weiß steht aktiver.} (34. Nxa5 $6 Re6 $11) (34. Qxe3 $2 Rxc4 35. bxc4 Qxb2+ 36. Rd2 Bf8 $19) (34. Nxe3 Qc8 35. Nc4 a4 $15) 34... Qb6 {[%emt 0:00:33]} 35. Bd4 {[%emt 0:00:38]} (35. Nxc6 Qxc6 36. Bd4 (36. Qxe3 Bc5 $16) 36... Bb4 $14) 35... Qa6 {[%emt 0:00:24]} 36. Qg4+ {[%emt 0:00:24]} (36. Qxe3 Bf6 $11) 36... Rg6 {[%emt 0:00:30]} 37. Nxg6 {[%emt 0:00:24]} fxg6 {[%emt 0:00:12]} 38. Re1 {[%emt 0:00:33]} Bb4 {[%emt 0:00:44]} 39. Qd7 $2 {[%emt 0:00:35]} (39. Rxe3 $18 Rxe3 40. Bxe3) 39... Re7 $14 {[%emt 0:00:35]} 40. Qd5+ {[%emt 0:00:30]} Kf8 $1 {[%emt 0:00:35][%cal Bg8f8,Bf8f7,Bf7e8,Be8d7][%mdl 32]} 41. Qd8+ {[%emt 0:18:17]} (41. Rxe3 $2 Rxe3 42. Bxe3 Qe2+ 43. Qg2 Qxe3 $19) 41... Kf7 {[%emt 0:09:08]} 42. Qd5+ {[%emt 0:01:02]} (42. Rxe3 $2 Rxe3 43. Bxe3 Qe2+ 44. Kh1 Qxe3 45. Qc7+ Be7 46. Qxa5 Qxg3 47. Qd5+ Kf8 $19) (42. Bc5 $5 Bxc5 43. Qd5+ Kf6 44. Qxc5 $11) 42... Ke8 {[%emt 0:16:36] Die Stellung ist ausgeglichen.} 43. Qg8+ {[%emt 0:03:01]} (43. Rxe3 $2 Rxe3 44. Qg8+ Kd7 45. Bxe3 (45. Qd5+ $2 Bd6 $19) 45... Qe2+ 46. Kh1 Qxe3 47. Qf7+ Be7 48. Qd5+ Bd6 49. Qb5+ Ke7 50. Qb7+ Ke6 51. Qc8+ Kf7 $19) 43... Kd7 {[%emt 0:00:53]} 44. Qd5+ {[%emt 0:00:17]} (44. Rxe3 Rxe3 45. Bxe3 (45. Qd5+ $2 Kc7 $19) 45... Qe2+ 46. Kh1 Qxe3 47. Qxg6 Bc5 $19) 44... Ke8 $1 {[%emt 0:00:07]} 45. Rc1 {[%emt 0:07:15][%cal Od4f6] Und Bf6! würde nun gewinnen.} (45. Rxe3 $2 {geht unter.} Rxe3 46. Qg8+ Kd7 47. Bxe3 (47. Qd5+ $2 Bd6 $19) 47... Qe2+ 48. Kh1 Qxe3 49. Qg7+ Be7 50. Qxg6 Bc5 $19) 45... e2 {[%emt 0:02:57]} 46. Bb6 {[%emt 0:10:48] jetzt Qg8+ und aus. Sehr scharf!} e1=Q {[%emt 0:10:35]} (46... e1=R $5 47. Qg8+ $8 Kd7 48. Qd8+ Ke6 49. Qg8+ Kd6 50. Qd8+ Ke6 51. Qg8+ Kd6 52. Qd8+ Ke6 $11) 47. Qg8+ {[%emt 0:01:16]} Kd7 {[%emt 0:00:05]} 48. Qd5+ {[%emt 0:00:24]} Ke8 {[%emt 0:00:20]} 49. Qg8+ {[%emt 0:01:39]} Kd7 {[%emt 0:00:04]} 50. Rc7+ {[%emt 0:00:14]} Kd6 {[%emt 0:00:12]} 51. Qd8+ {[%emt 0:00:14]} Ke6 {[%emt 0:00:15]} 52. Qg8+ {[%emt 0:00:24]} Kd6 {[%emt 0:01:07]} 53. Qd8+ {[%emt 0:01:25]} Ke6 {[%emt 0:00:08]} 54. Qg8+ {[%emt 0:00:40]} Kd6 {[%emt 0:01:04] ( -> ...Qae2+)} 55. Qd8+ {[%emt 0:00:07]} Ke6 {[%emt 0:00:08] Schwarz hat sich erfolgreich gewehrt.   Gewichteter Fehlerwert: Weiß=0.23 (präzise) /Schwarz=0.21 (präzise) .  Verlustzug:     	---       	Schwarz=1     Gewinn verpasst:   	Weiß=2     	---        Fehler:       	Weiß=1     	Schwarz=2     Ungenau:       	Weiß=1     	Schwarz=2     OK:         	Weiß=13    	Schwarz=11    Bester:       	Weiß=9     	Schwarz=5     Stark:        	Weiß=1     	Schwarz=2     Brilliant:      	Weiß=1     	---} 1/2-1/2

[Event "Fagernes Chess GM-Swiss 2024"]
[Site "Fagernes"]
[Date "2024.03.24"]
[Round "1.13"]
[White "Aniruddh Chatterjee"]
[Black "Petkov, Momchil"]
[Result "1/2-1/2"]
[ECO "A20"]
[WhiteElo "2182"]
[BlackElo "2500"]
[Annotator "TA"]
[PlyCount "118"]
[EventDate "2024.03.25"]
[EventType "swiss"]
[EventCountry "NOR"]
[SourceTitle "playchess.com"]
[Source "ChessBase"]
[SourceQuality "1"]
[TimeControl "40/6000+30:2400+30"]

{[%evp 9,118,14,37,13,8,20,27,-6,-12,-21,-17,-24,-6,-18,0,0,-7,-10,0,-21,0,0,0,0,0,0,0,0,4,0,7,0,0,0,0,-6,3,0,0,0,0,0,0,0,8,12,14,11,13,13,22,0,0,5,8,0,0,0,0,0,0,0,6,6,0,0,0,0,0,0,0,0,0,0,0,0,0,0,0,0,0,0,0,0,0,0,0,0,0,0,0,0,0,0,0,0,0,0,0,-8,-8,-8,-8,-8,-8,-8,-8,-8,-8,-8,0]} 1. c4 {[%emt 0:06:02]} e5 {[%emt 0:00:34]} 2. g3 {[%emt 0:00:09]} c6 {[%emt 0:00:51]} 3. Nf3 {[%emt 0:00:16]} e4 {[%emt 0:00:13]} 4. Nd4 {[%emt 0:00:05]} d5 {[%emt 0:02:07]} 5. cxd5 {[%emt 0:00:06]} Qxd5 {[%emt 0:00:06]} 6. Nc2 {[%emt 0:00:09]} Nf6 {[%emt 0:00:27]} 7. Nc3 {[%emt 0:02:16]} Qh5 {[%emt 0:02:42]} 8. d3 {[%emt 0:08:05] White has an edge.} exd3 {[%emt 0:14:05]} 9. Qxd3 {[%emt 0:00:34]} Bc5 {[%emt 0:03:06]} 10. Qd2 {[%emt 0:21:04]} Bf5 {[%emt 0:06:58] And now ...Na6 would win.} 11. Nd4 {[%emt 0:05:21] The position is equal.} O-O {[%emt 0:22:53] [#] aiming for ...Rd8.} 12. Nxf5 {[%emt 0:02:57]} Qxf5 {[%emt 0:00:08]} 13. Qf4 {[%emt 0:01:20]} Qe6 {[%emt 0:00:06]} 14. Bg2 {[%emt 0:01:45]} Na6 {[%emt 0:00:20][%cal Bb8a6,Ba6b4,Bb4d3][%mdl 32]} 15. O-O {[%emt 0:03:20]} Rad8 {[%emt 0:05:43]} 16. Ne4 Nxe4 {[%emt 0:05:05]} 17. Qxe4 {[%emt 0:02:09]} Qxe4 {[%emt 0:00:07]} 18. Bxe4 {[%emt 0:00:07]} Rfe8 {[%emt 0:00:07]} 19. Bf3 {[%emt 0:00:31]} Nb4 {[%emt 0:03:11]} 20. e3 {[%emt 0:17:20]} Be7 {[%emt 0:01:42]} 21. a3 {[%emt 0:04:24]} Nd3 {[%emt 0:05:32]} 22. Rb1 {[%emt 0:01:36] White is weak on the dark squares} a5 {[%emt 0:03:10]} 23. Rd1 {[%emt 0:03:30]} Ne5 {[%emt 0:06:34]} 24. Be2 {[%emt 0:02:35]} Rxd1+ {[%emt 0:00:12]} 25. Bxd1 {[%emt 0:00:05]} Rd8 {[%emt 0:01:00] Prevents Bd2} 26. Be2 {[%emt 0:04:16]} f5 {[%emt 0:09:23]} 27. b4 {[%emt 0:03:06]} axb4 {[%emt 0:01:33]} 28. axb4 {[%emt 0:02:39]} Kf7 {[%emt 0:05:02]} 29. Bb2 {[%emt 0:05:58]} Rd2 {[%emt 0:01:20]} 30. Bd1 {[%emt 0:03:43] A strong pair of Bishops.} Bf6 {[%emt 0:05:07]} 31. Bc3 {[%emt 0:01:31]} Rd8 {[%emt 0:01:47]} 32. Bd4 {[%emt 0:00:35]} Nd7 {[%emt 0:01:45]} 33. Bf3 {[%emt 0:01:29]} Bxd4 {[%emt 0:02:45]} 34. exd4 $11 {[%emt 0:00:06][%mdl 4096] Endgame. KRB-KRN} Nf6 {[%emt 0:00:54]} 35. b5 {[%emt 0:00:08]} Rxd4 {[%emt 0:00:29]} 36. bxc6 {[%emt 0:00:04]} bxc6 {[%emt 0:00:05]} 37. Bxc6 {[%emt 0:00:11]} g5 {[%emt 0:00:33]} 38. h3 {[%emt 0:00:50]} h5 {[%emt 0:00:25]} 39. Bf3 {[%emt 0:01:01]} h4 {[%emt 0:00:34]} 40. gxh4 {[%emt 0:00:19]} Rxh4 {[%emt 0:00:06]} 41. Kg2 {[%emt 0:40:26]} Rd4 {[%emt 0:40:15]} 42. Rb7+ {[%emt 0:00:23]} Kg6 {[%emt 0:00:31]} 43. Rb6 {[%emt 0:00:08]} Rd7 {[%emt 0:00:46]} 44. Ra6 {[%emt 0:00:12]} Kf7 {[%emt 0:00:41]} 45. Rb6 {[%emt 0:00:37]} Rc7 {[%emt 0:01:06]} 46. Ra6 {[%emt 0:00:56]} Re7 {[%emt 0:00:00]} 47. Rb6 {[%emt 0:00:00]} Re6 {[%emt 0:00:00]} 48. Rb7+ {[%emt 0:00:00]} Kg6 {[%emt 0:00:00]} 49. Ra7 {[%emt 0:00:00]} Rd6 {[%emt 0:00:00]} 50. Ra5 {[%emt 0:00:00]} Ne8 {[%emt 0:00:00]} 51. Rd5 {[%emt 0:00:00]} Rxd5 {[%emt 0:00:00]} 52. Bxd5 {[%emt 0:00:00] KB-KN} Kf6 {[%emt 0:00:00]} 53. Bc6 {[%emt 0:00:00]} Ng7 {[%emt 0:00:00]} 54. h4 {[%emt 0:00:00]} gxh4 {[%emt 0:00:00]} 55. Kh3 {[%emt 0:00:00]} Kg5 {[%emt 0:00:00]} 56. f4+ {[%emt 0:00:00]} Kxf4 {[%emt 0:00:00] ...Kg5 would now be deadly.} 57. Kxh4 {[%emt 0:00:00]} Ke3 {[%emt 0:00:00]} 58. Kg3 {[%emt 0:00:00]} f4+ {[%emt 0:00:00]} 59. Kg2 {[%emt 0:00:00]} f3+ {[%emt 0:00:00] An even fight not without its subleties.   Weighted Error Value: White=0.03 (flawless) /Black=0.03 (flawless) .  Inaccurate:     	White=1     	---        OK:         	White=26    	Black=16     Best:        	---       	Black=2} 1/2-1/2

[Event "Fagernes Chess GM-Swiss 2024"]
[Site "Fagernes"]
[Date "2024.03.24"]
[Round "1.14"]
[White "Can, Isik"]
[Black "Andersen, Morten"]
[Result "1-0"]
[ECO "B32"]
[WhiteElo "2493"]
[BlackElo "2178"]
[Annotator "TA"]
[PlyCount "87"]
[EventDate "2024.03.25"]
[EventType "swiss"]
[EventCountry "NOR"]
[SourceTitle "playchess.com"]
[Source "ChessBase"]
[SourceQuality "1"]
[TimeControl "40/6000+30:2400+30"]

{[%evp 11,87,29,25,33,58,56,63,61,85,50,92,77,62,65,76,80,73,59,56,59,64,61,78,62,106,96,134,120,169,126,159,160,157,160,200,218,241,184,195,164,249,246,254,249,258,246,258,260,251,252,333,333,645,560,909,861,1812,1274,856,1804,1708,1747,1391,1373,5172,5181,5114,4132,2036,1477,1411,1311,1412,1085,939,2558,1177,748]} 1. e4 {[%emt 0:00:51]} c5 {[%emt 0:02:12]} 2. Nf3 {[%emt 0:00:14][%cal Bg1f3,Bf3d4,Bd4b5,Bb5c3,Bc3d5][%mdl 32]} Nc6 {[%emt 0:00:11]} 3. d4 {[%emt 0:00:04]} cxd4 {[%emt 0:00:06]} 4. Nxd4 {[%emt 0:00:03]} e5 {[%emt 0:00:10]} 5. Nb5 {[%emt 0:00:04]} d6 {[%emt 0:00:05]} 6. c4 {[%emt 0:00:02]} Be7 {[%emt 0:01:32]} 7. N5c3 {[%emt 0:00:06]} f5 {[%emt 0:06:18]} 8. exf5 {[%emt 0:00:10]} Bxf5 {[%emt 0:01:36]} 9. Bd3 {[%emt 0:00:05] White is slightly better.} Qd7 {[%emt 0:10:14]} 10. Nd5 {[%emt 0:14:15] Strongly threatening Bxf5.} e4 {[%emt 0:11:23]} 11. Bc2 {[%emt 0:02:53]} Nf6 {[%emt 0:12:17]} 12. Nbc3 {[%emt 0:02:17] White is more active.} O-O {[%emt 0:03:12]} 13. O-O {[%emt 0:05:16]} Kh8 {[%emt 0:12:38]} 14. Nxf6 Bxf6 {[%emt 0:00:39]} 15. Nxe4 {[%emt 0:15:35]} Bd4 {[%emt 0:01:34]} 16. Ng3 {[%emt 0:03:36]} Bxc2 {[%emt 0:04:04]} 17. Qxc2 {[%emt 0:01:21] Black is now going downhill.} Rac8 {[%emt 0:05:50]} 18. Be3 {[%emt 0:02:45]} Bxe3 {[%emt 0:02:32]} 19. fxe3 {[%emt 0:00:05]} Rfe8 {[%emt 0:03:16]} (19... Kg8 $16 20. Rxf8+ Rxf8) 20. Qd2 {[%emt 0:11:10]} Ne5 {[%emt 0:03:42]} 21. b3 {[%emt 0:00:21]} Rcd8 {[%emt 0:05:00]} 22. Rad1 {[%emt 0:01:15]} Qe6 {[%emt 0:06:51]} 23. Nf5 {[%emt 0:04:52]} Rf8 {[%emt 0:05:20]} 24. Nxd6 {[%emt 0:05:18]} Rxf1+ {[%emt 0:00:11]} 25. Rxf1 {[%emt 0:00:01][%cal Od2d4]} h6 {[%emt 0:01:50]} (25... Qxd6 $2 {too greedy.} 26. Qxd6 Rg8 27. Qxe5 $18) (25... Kg8 $142) 26. c5 $18 {[%emt 0:00:40]} b6 {[%emt 0:01:37]} 27. b4 {[%emt 0:00:45]} a5 {[%emt 0:01:28]} 28. a3 {[%emt 0:08:08][%cal Ba2a3,Ba3b4,Bb4c5][%mdl 32]} ({Not} 28. bxa5 bxc5 29. Rd1 c4 $16 (29... Nc4 $2 30. Nf7+ Kh7 31. Nxd8 $18)) 28... axb4 {[%emt 0:00:12]} 29. axb4 {[%emt 0:00:05]} bxc5 {[%emt 0:00:25]} 30. bxc5 {[%emt 0:00:01]} Kg8 {[%emt 0:01:21]} 31. e4 {[%emt 0:01:08]} Nf7 $2 {[%emt 0:03:38] [#]} (31... Kh7 32. Qd5 Qe7) 32. Qa5 {[%emt 0:01:17] White is clearly winning.} Rd7 {[%emt 0:01:02]} 33. Nxf7 {[%emt 0:01:38]} Rxf7 {[%emt 0:00:13][%mdl 4096] Endgame. KQR-KQR} 34. Qd8+ {[%emt 0:01:28]} Kh7 {[%emt 0:00:14]} 35. Rxf7 {[%emt 0:00:05]} Qxf7 {[%emt 0:00:07] KQ-KQ} 36. Qd5 {[%emt 0:00:15]} Qa7 {[%emt 0:00:26]} 37. h3 {[%emt 0:02:04]} Qa1+ {[%emt 0:00:21]} 38. Kh2 {[%emt 0:00:02]} Qc1 {[%emt 0:00:16]} 39. Qf5+ {[%emt 0:01:26]} Kh8 {[%emt 0:00:35]} 40. Qf8+ {[%emt 0:00:47]} Kh7 {[%emt 0:00:04]} 41. Qf2 {[%emt 0:47:54]} Qc3 {[%emt 0:40:29]} 42. Qf5+ {[%emt 0:00:04]} Kh8 {[%emt 0:00:12]} 43. Qd5 {[%emt 0:00:01] [#] And now c6 would win.} Qe3 {[%emt 0:00:59]} 44. Qe5 {[%emt 0:00:48] Weighted Error Value: White=0.09 (flawless) /Black=0.40.  Mistake:       	---       	Black=3      Inaccurate:     	White=1     	Black=6      OK:         	White=16    	Black=6} 1-0

[Event "Fagernes Chess GM-Swiss 2024"]
[Site "Fagernes"]
[Date "2024.03.24"]
[Round "1.15"]
[White "Akshit Kumar J"]
[Black "Mitusov, Semen"]
[Result "1/2-1/2"]
[ECO "B92"]
[WhiteElo "2172"]
[BlackElo "2487"]
[Annotator "TA"]
[PlyCount "74"]
[EventDate "2024.03.25"]
[EventType "swiss"]
[EventCountry "NOR"]
[SourceTitle "playchess.com"]
[Source "ChessBase"]
[SourceQuality "1"]
[TimeControl "40/6000+30:2400+30"]

{[%evp 17,74,0,4,8,10,11,8,-13,16,16,32,38,65,27,29,28,26,18,30,12,37,19,24,9,14,17,15,15,13,0,47,48,49,59,39,58,83,4,9,4,13,0,0,0,0,0,10,9,11,0,13,0,0,0,1,0,0,0,29]} 1. e4 {[%emt 0:05:57]} c5 {[%emt 0:00:13]} 2. Nf3 {[%emt 0:00:32]} d6 {[%emt 0:00:08]} 3. d4 {[%emt 0:00:05]} cxd4 {[%emt 0:00:14]} 4. Nxd4 {[%emt 0:00:06]} Nf6 {[%emt 0:00:08]} 5. Nc3 {[%emt 0:00:05]} a6 {[%emt 0:00:05]} 6. Be2 {[%emt 0:00:31]} e5 {[%emt 0:01:49]} 7. Nb3 {[%emt 0:00:07]} Be7 {[%emt 0:00:12]} 8. O-O {[%emt 0:00:18]} O-O {[%emt 0:02:04]} 9. Be3 {[%emt 0:00:06]} Be6 {[%emt 0:00:23]} 10. Re1 {[%emt 0:00:27]} Nbd7 {[%emt 0:01:48]} 11. a4 {[%emt 0:00:49][%cal Ba2a4,Ba4a5][%mdl 32]} Rc8 {[%emt 0:06:10]} 12. a5 {[%emt 0:00:07]} Qc7 {[%emt 0:04:03]} (12... Rxc3 $5 13. bxc3 Nxe4 $14) 13. Bf3 {[%emt 0:00:10]} Rfd8 {[%emt 0:08:09]} 14. Nd2 {[%emt 0:05:11][%cal Bb3d2,Bd2f1,Bf1g3][%mdl 32]} Nc5 {[%emt 0:07:58]} 15. Nf1 {[%emt 0:14:59]} b5 {[%emt 0:03:32]} 16. axb6 {[%emt 0:13:58]} Qxb6 {[%emt 0:01:44]} 17. Qd2 {[%emt 0:04:58]} Qb7 {[%emt 0:07:44]} 18. Ng3 {[%emt 0:06:38]} (18. h3 {is more complex.} h6 19. Ng3 d5 20. exd5 e4 21. Bxc5 exf3 22. Bxe7 Qxe7 23. Nf5) 18... Bf8 {[%emt 0:10:41]} 19. Bg5 {[%emt 0:05:21]} (19. Reb1 $5) 19... Ncd7 {[%emt 0:02:15]} 20. b3 {[%emt 0:13:02]} Qc6 {[%emt 0:06:54]} 21. Re3 {[%emt 0:15:12]} h6 {[%emt 0:01:05]} 22. Bxf6 {[%emt 0:02:56]} Nxf6 {[%emt 0:00:02]} 23. Qe2 {[%emt 0:09:52]} Ra8 {[%emt 0:07:40]} (23... Qb7 $11 {is superior.}) 24. Nh5 $14 {[%emt 0:00:13] Threatens to win with Nxf6+.} ({Reject} 24. Nd5 Nxd5 25. exd5 Bxd5 $15) 24... Be7 {[%emt 0:08:17][%cal Bf8e7,Be7f6,Bf6g5,Bg5d8][%mdl 32]} 25. Nxf6+ {[%emt 0:01:41]} Bxf6 {[%emt 0:00:01]} 26. Bg4 {[%emt 0:00:34]} Rdc8 {[%emt 0:02:50] [#]} 27. Nd5 {[%emt 0:05:47]} Bg5 $11 {[%emt 0:02:05] The position is equal.} 28. Rc3 {[%emt 0:01:35]} Qb7 {[%emt 0:00:24]} 29. Rxc8+ {[%emt 0:02:08]} Rxc8 {[%emt 0:00:05]} 30. Bf3 {[%emt 0:01:29]} (30. Qxa6 $2 {perishes.} Qxa6 31. Rxa6 Bxg4 $19) 30... g6 {[%emt 0:09:49]} 31. g3 {[%emt 0:00:21]} Rc6 {[%emt 0:01:29]} 32. h4 {[%emt 0:00:33]} Bd8 {[%emt 0:00:01]} 33. Qd2 {[%emt 0:00:35]} (33. h5 {feels hotter.} Kg7 34. Qd2 Qc8 35. c4) 33... h5 {[%emt 0:01:00]} 34. Nb4 {[%emt 0:00:24]} Rb6 {[%emt 0:04:49]} 35. Nd5 {[%emt 0:00:06]} Rc6 {[%emt 0:03:00]} 36. Nb4 {[%emt 0:00:05]} Rb6 {[%emt 0:01:29]} 37. Nd5 {[%emt 0:00:04]} Rc6 {Weighted Error Value: White=0.10 (very precise) /Black=0.09 (flawless) .  Mistake:       	White=1     	Black=1      Inaccurate:     	White=1     	Black=2      OK:         	White=11    	Black=13} 1/2-1/2

[Event "Fagernes Chess GM-Swiss 2024"]
[Site "Fagernes"]
[Date "2024.03.24"]
[Round "1.16"]
[White "Ghasi, Ameet K"]
[Black "Vijayakumar, Rishi"]
[Result "1-0"]
[ECO "A05"]
[WhiteElo "2485"]
[BlackElo "2156"]
[Annotator "TA"]
[PlyCount "70"]
[EventDate "2024.03.25"]
[EventType "swiss"]
[EventCountry "NOR"]
[SourceTitle "playchess.com"]
[Source "ChessBase"]
[SourceQuality "1"]
[TimeControl "40/6000+30:2400+30"]

{[%evp 13,70,-27,-9,-32,-8,0,-7,-10,0,-20,-11,-25,-15,-25,-8,-34,-18,-15,-4,-10,0,0,0,0,24,12,18,20,18,17,13,24,24,0,9,9,12,9,74,82,79,38,34,30,32,39,31,27,88,24,38,9,12,0,18,16,109,110,245]} 1. Nf3 Nf6 2. g3 c5 3. Bg2 Nc6 4. O-O e5 5. d3 d5 6. Nbd2 Be7 7. e4 O-O 8. Re1 dxe4 9. dxe4 Qc7 10. c3 {Die Stellung ist ausgeglichen.} Rd8 11. Qc2 h6 12. Nc4 Be6 13. Ne3 c4 14. Nh4 Bc5 15. Nhf5 Ne7 16. Qe2 Bxf5 17. exf5 Bxe3 18. Qxe3 Rd3 19. Qxe5 Qxe5 20. Rxe5 Rd1+ 21. Bf1 Nc6 22. Re2 ({Nicht} 22. Rc5 $2 Re8 23. Kg2 Ree1 $19) 22... Rad8 {Verhindert Rd2.} 23. f4 Nd7 {[%cal Bf6d7,Bd7c5,Bc5d3][%mdl 32] Droht stark ...Nc5.} 24. Kf2 {[%cal Bg1f2,Bf2e1,Be1e2][%mdl 32] Re1 ist eine echte Drohung.} Nc5 {Und jetzt ...Nd3+ wäre schön.} 25. Re1 Rxe1 (25... Nd3+ $11 26. Bxd3 R1xd3) 26. Kxe1 $16 Nd3+ 27. Bxd3 Rxd3 {[%mdl 4096] Endspiel. KRB-KRN} 28. Ke2 Ne7 {[#]} 29. f6 $1 gxf6 30. Be3 b6 {[#]} (30... a6 $11) 31. a4 (31. Bd4 $1 $16) 31... Nc6 $11 32. g4 f5 33. g5 hxg5 34. fxg5 f6 {[#]} 35. Rf1 $1 $16 Ne7 {Gewichteter Fehlerwert: Weiß=0.12 (sehr präzise) /Schwarz=0.18 (sehr präzise) .  Fehler:       	Weiß=1     	Schwarz=4     Ungenau:       	Weiß=3     	---        OK:         	Weiß=8     	Schwarz=6     Bester:       	Weiß=1     	Schwarz=6     Stark:        	Weiß=1     	---} (35... Rd5 $16) 1-0